bitfinex-derivatives/quotes_BTCF0:USTF0_20241227
["timestamp","ask_amount","ask_price","bid_price","bid_amount"]
[1735309439494,0.053916,96420.0,96415.0,0.051918]
[1735309440693,0.060916,96420.0,96415.0,0.051918]
[1735309440896,0.060916,96420.0,96416.0,0.051917]
[1735309441095,0.051917,96418.0,96413.0,0.001]
[1735309441293,0.051918,96416.0,96415.0,0.001]
[1735309441594,0.01,96420.0,96389.0,0.24816372]
[1735309441595,0.31,96420.0,96389.0,0.24816372]
[1735309441800,0.051927,96399.0,96389.0,0.29426372]
[1735309442195,0.051927,96399.0,96389.0,0.0461]
[1735309443103,0.051923,96406.0,96383.0,0.24816372]
[1735309443296,0.051935,96385.0,96383.0,0.24816372]
[1735309443505,0.10368896,96393.0,96383.0,0.24816372]
[1735309443702,0.10368896,96393.0,96373.0,0.0487]
[1735309443703,0.00970767,96399.0,96373.0,0.0487]
[1735309443901,0.051928,96397.0,96387.0,0.051933]
[1735309444199,0.15561696,96397.0,96373.0,0.0487]
[1735309444403,0.15561696,96397.0,96390.0,0.051932]
[1735309444903,0.15561696,96397.0,96383.0,0.051935]
[1735309444904,0.10368896,96397.0,96383.0,0.051935]
[1735309445093,0.051931,96392.0,96383.0,0.051935]
[1735309445602,0.051931,96392.0,96390.0,0.001]
[1735309446694,0.11068896,96397.0,96390.0,0.001]
[1735309447094,0.11068896,96397.0,96389.0,0.051932]
[1735309447095,0.003,96392.0,96389.0,0.051932]
[1735309447614,0.004,96392.0,96389.0,0.051932]
[1735309447807,0.09289166,96391.0,96390.0,0.001]
[1735309448398,0.09289166,96391.0,96389.0,0.051932]
[1735309448697,0.09289166,96391.0,96389.0,0.052932]
[1735309449201,0.09789166,96392.0,96389.0,0.052932]
[1735309449504,0.002,96391.0,96389.0,0.052932]
[1735309449902,0.002,96391.0,96389.0,0.001]
[1735309450099,0.053931,96391.0,96383.0,0.051935]
[1735309450300,0.059931,96391.0,96390.0,0.001]
[1735309450800,0.051935,96385.0,96378.0,0.051938]
[1735309451000,0.051938,96379.0,96373.0,0.0487]
[1735309451191,0.007,96391.0,96371.0,0.00981408]
[1735309451192,0.051939,96378.0,96371.0,0.00981408]
[1735309451597,0.05194,96376.0,96370.0,0.051942]
[1735309452108,0.05194,96376.0,96373.0,0.002]
[1735309452297,0.05194,96376.0,96373.0,0.003]
[1735309452498,0.10368896,96383.0,96373.0,0.003]
[1735309452697,0.05194,96374.0,96373.0,0.003]
[1735309452993,0.05194,96374.0,96373.0,0.002]
[1735309453610,0.05194,96374.0,96370.0,0.002]
[1735309453910,0.05194,96374.0,96370.0,0.005]
[1735309454095,0.05194,96374.0,96370.0,0.002]
[1735309454294,0.05194,96374.0,96373.0,0.002]
[1735309454707,0.05194,96374.0,96373.0,0.003]
[1735309455303,0.05194,96374.0,96373.0,0.001]
[1735309456297,0.09282986,96380.0,96373.0,0.001]
[1735309456502,0.09282986,96380.0,96377.0,0.051938]
[1735309456811,0.09282986,96380.0,96379.0,0.051938]
[1735309457898,0.01992986,96380.0,96379.0,0.051938]
[1735309458107,0.001,96380.0,96375.0,0.0451]
[1735309458495,0.001,96380.0,96379.0,0.051938]
[1735309458702,0.09277744,96385.0,96384.0,0.051935]
[1735309461203,0.09377744,96385.0,96384.0,0.051935]
[1735309461603,0.09277744,96385.0,96384.0,0.054935]
[1735309463203,0.09577744,96385.0,96384.0,0.052935]
[1735309465914,0.155513,96410.0,96386.0,0.051934]
[1735309466212,0.155513,96410.0,96406.0,0.051923]
[1735309466412,0.15499299,96410.0,96406.0,0.051923]
[1735309466807,0.15499299,96410.0,96409.0,0.051922]
[1735309467115,0.15499299,96411.0,96409.0,0.051922]
[1735309467311,0.15499299,96411.0,96410.0,0.0472]
[1735309468419,0.15499299,96411.0,96410.0,0.05855685]
[1735309468614,0.15499299,96411.0,96410.0,0.0472]
[1735309468823,0.12395486,96423.0,96410.0,0.0472]
[1735309469006,0.12395486,96423.0,96422.0,0.051915]
[1735309470319,0.12395486,96427.0,96422.0,0.051915]
[1735309470820,0.008,96423.0,96422.0,0.052915]
[1735309471915,0.012,96423.0,96422.0,0.052915]
[1735309472711,0.12602877,96436.0,96435.0,0.051908]
[1735309473807,0.12602877,96436.0,96435.0,0.055908]
[1735309474317,0.10368896,96450.0,96447.0,0.051901]
[1735309474516,0.051898,96453.0,96449.0,0.0519]
[1735309475816,0.10368896,96457.0,96435.0,0.009]
[1735309476125,0.10368896,96457.0,96453.0,0.051898]
[1735309476325,0.051894,96460.0,96453.0,0.051898]
[1735309476725,0.051894,96460.0,96454.0,0.051897]
[1735309477027,0.22764382,96463.0,96454.0,0.051897]
[1735309477218,0.05685335,96462.0,96454.0,0.051897]
[1735309478813,0.05685335,96462.0,96454.0,0.058897]
[1735309479121,0.051897,96456.0,96454.0,0.01]
[1735309479321,0.051897,96456.0,96454.0,0.003]
[1735309479626,0.051897,96456.0,96454.0,0.009]
[1735309479820,0.051897,96456.0,96454.0,0.006]
[1735309480125,0.051897,96456.0,96454.0,0.01]
[1735309481511,0.051897,96456.0,96454.0,0.012]
[1735309482320,0.05685335,96462.0,96454.0,0.009]
[1735309482626,0.051897,96455.0,96454.0,0.009]
[1735309483524,0.05685335,96462.0,96439.0,0.051905]
[1735309483728,0.051903,96444.0,96439.0,0.051905]
[1735309484020,0.0452,96443.0,96439.0,0.051905]
[1735309484225,0.051904,96442.0,96439.0,0.051905]
[1735309484425,0.0452,96443.0,96424.0,0.10382601]
[1735309484624,0.0452,96443.0,96442.0,0.051904]
[1735309486032,0.0452,96443.0,96424.0,0.10382601]
[1735309486326,0.051907,96436.0,96431.0,0.051909]
[1735309486717,0.051907,96436.0,96433.0,0.051908]
[1735309486923,0.051907,96436.0,96434.0,0.051908]
[1735309487122,0.10368896,96440.0,96424.0,0.10382601]
[1735309487420,0.0452,96443.0,96441.0,0.051904]
[1735309487627,0.0502,96443.0,96441.0,0.051904]
[1735309488522,0.0452,96443.0,96441.0,0.051904]
[1735309489519,0.0492,96443.0,96441.0,0.051904]
[1735309489721,0.0522,96443.0,96441.0,0.052904]
[1735309490322,0.051904,96442.0,96441.0,0.001]
[1735309490630,0.0522,96443.0,96423.0,0.051914]
[1735309490835,0.05191,96431.0,96414.0,0.088]
[1735309491138,0.05191,96431.0,96424.0,0.051913]
[1735309492721,0.05291,96431.0,96424.0,0.051913]
[1735309493128,0.05491,96431.0,96424.0,0.051913]
[1735309494137,0.05491,96431.0,96425.0,0.051913]
[1735309494836,0.003,96431.0,96414.0,0.088]
[1735309495033,0.003,96431.0,96430.0,0.05191]
[1735309495832,0.003,96431.0,96421.0,0.051915]
[1735309496133,0.003,96431.0,96420.0,0.10368896]
[1735309496134,0.003,96431.0,96430.0,0.05191]
[1735309496333,0.001,96431.0,96430.0,0.05191]
[1735309496528,0.005,96431.0,96430.0,0.05191]
[1735309496925,0.001,96431.0,96430.0,0.05191]
[1735309497124,0.12395486,96450.0,96448.0,0.0519]
[1735309499231,0.12395486,96452.0,96447.0,0.00984783]
[1735309499428,0.12395486,96452.0,96449.0,0.0519]
[1735309500147,0.12395486,96452.0,96435.0,0.0921]
[1735309500438,0.12395486,96452.0,96450.0,0.051899]
[1735309500829,0.12395486,96453.0,96451.0,0.051898]
[1735309501927,0.17585186,96455.0,96451.0,0.051898]
[1735309502428,0.12395486,96455.0,96440.0,0.10368896]
[1735309502633,0.12395486,96455.0,96453.0,0.051897]
[1735309503437,0.15499299,96462.0,96453.0,0.051897]
[1735309503640,0.15499299,96462.0,96460.0,0.051894]
[1735309503841,0.15499299,96462.0,96461.0,0.1367]
[1735309504930,0.15499299,96462.0,96460.0,0.051894]
[1735309505136,0.28989995,96471.0,96461.0,0.005]
[1735309505137,0.051892,96464.0,96461.0,0.005]
[1735309505441,0.051893,96463.0,96461.0,0.005]
[1735309506646,0.051893,96463.0,96461.0,0.009]
[1735309506647,0.17593613,96463.0,96461.0,0.009]
[1735309507231,0.051902,96446.0,96441.0,0.24816372]
[1735309508042,0.051902,96446.0,96440.0,0.051905]
[1735309508238,0.051902,96446.0,96436.0,0.24816372]
[1735309508439,0.051902,96446.0,96442.0,0.051903]
[1735309509139,0.051902,96446.0,96443.0,0.051903]
[1735309509443,0.056902,96446.0,96443.0,0.051903]
[1735309509642,0.007,96446.0,96445.0,0.051902]
[1735309509939,0.008,96446.0,96445.0,0.051902]
[1735309510341,0.1239157,96451.0,96445.0,0.051902]
[1735309510536,0.008,96446.0,96445.0,0.051902]
[1735309511230,0.009,96446.0,96445.0,0.051902]
[1735309512031,0.003,96446.0,96445.0,0.051902]
[1735309512231,0.01,96446.0,96445.0,0.052902]
[1735309512439,0.31,96446.0,96429.0,0.24816372]
[1735309512638,0.05191,96430.0,96429.0,0.24816372]
[1735309513141,0.35191,96430.0,96418.0,0.37308558]
[1735309513439,0.35191,96430.0,96423.0,0.31020465]
[1735309513440,0.051913,96425.0,96423.0,0.31020465]
[1735309514243,0.0461,96424.0,96423.0,0.31020465]
[1735309514827,0.051916,96419.0,96418.0,0.00084]
[1735309515035,0.05192,96412.0,96404.0,0.051924]
[1735309516132,0.12369565,96411.0,96404.0,0.051924]
[1735309516333,0.12369565,96411.0,96405.0,0.051923]
[1735309517044,0.12369565,96411.0,96404.0,0.009]
[1735309517241,0.12469565,96411.0,96409.0,0.051921]
[1735309517541,0.001,96411.0,96409.0,0.051921]
[1735309517745,0.001,96411.0,96404.0,0.009]
[1735309518339,0.001,96411.0,96404.0,0.060924]
[1735309518747,0.001,96411.0,96404.0,0.057924]
[1735309518933,0.051921,96410.0,96409.0,0.002]
[1735309519541,0.051921,96410.0,96405.0,0.005]
[1735309519940,0.051922,96409.0,96404.0,0.008]
[1735309520445,0.001,96411.0,96395.0,0.0456]
[1735309520638,0.12369565,96418.0,96409.0,0.005]
[1735309520838,0.12369565,96418.0,96417.0,0.051917]
[1735309521235,0.12369565,96420.0,96419.0,0.051916]
[1735309522653,0.051911,96429.0,96422.0,0.051914]
[1735309523746,0.051912,96427.0,96422.0,0.051914]
[1735309524440,0.002,96429.0,96422.0,0.051914]
[1735309524746,0.002,96429.0,96414.0,0.051919]
[1735309525050,0.051917,96418.0,96414.0,0.051919]
[1735309526749,0.051917,96418.0,96414.0,0.054919]
[1735309527141,0.051918,96416.0,96414.0,0.054919]
[1735309527848,0.051918,96416.0,96414.0,0.003]
[1735309528951,0.051918,96416.0,96396.0,0.0448]
[1735309529247,0.051926,96402.0,96396.0,0.096728]
[1735309529449,0.051926,96402.0,96397.0,0.051928]
[1735309530839,0.052926,96402.0,96397.0,0.060928]
[1735309531443,0.051927,96398.0,96397.0,0.009]
[1735309532052,0.051927,96398.0,96397.0,0.013]
[1735309532855,0.051927,96398.0,96397.0,0.004]
[1735309533153,0.052927,96398.0,96397.0,0.012]
[1735309534859,0.001,96398.0,96397.0,0.012]
[1735309535351,0.12369565,96416.0,96412.0,0.05192]
[1735309535649,0.13393636,96416.0,96412.0,0.05192]
[1735309536454,0.12369565,96416.0,96397.0,0.004]
[1735309536641,0.12369565,96416.0,96412.0,0.002]
[1735309536842,0.12369565,96416.0,96413.0,0.0471]
[1735309537947,0.051917,96418.0,96415.0,0.051918]
[1735309538154,0.051917,96418.0,96416.0,0.0463]
[1735309538353,0.051917,96418.0,96416.0,0.0904]
[1735309539659,0.051917,96418.0,96416.0,0.143318]
[1735309540959,0.051913,96426.0,96416.0,0.0914]
[1735309541348,0.051913,96426.0,96424.0,0.051913]
[1735309542658,0.051909,96433.0,96427.0,0.051911]
[1735309542858,0.003,96426.0,96416.0,0.0904]
[1735309543047,0.003,96426.0,96425.0,0.051913]
[1735309543247,0.10368896,96440.0,96416.0,0.0904]
[1735309543565,0.001,96426.0,96425.0,0.051913]
[1735309543862,0.10368896,96440.0,96432.0,0.051909]
[1735309544060,0.051906,96438.0,96432.0,0.051909]
[1735309544954,0.05191,96432.0,96424.0,0.051913]
[1735309545155,0.051912,96427.0,96424.0,0.051913]
[1735309545946,0.10368896,96434.0,96424.0,0.051913]
[1735309546159,0.002,96427.0,96417.0,0.051917]
[1735309546464,0.051916,96419.0,96417.0,0.051917]
[1735309546762,0.22782277,96426.0,96416.0,0.0904]
[1735309546763,0.27973477,96426.0,96416.0,0.0904]
[1735309547447,0.27973477,96426.0,96417.0,0.001]
[1735309547961,0.12413381,96421.0,96420.0,0.051915]
[1735309549364,0.051915,96422.0,96420.0,0.051915]
[1735309549548,0.001,96421.0,96420.0,0.051915]
[1735309551356,0.15616726,96421.0,96420.0,0.051915]
[1735309552560,0.20808226,96421.0,96416.0,0.0904]
[1735309552765,0.052915,96421.0,96416.0,0.0904]
[1735309553059,0.052915,96421.0,96416.0,0.142318]
[1735309553864,0.052915,96421.0,96416.0,0.143318]
[1735309554066,0.12411726,96417.0,96416.0,0.143318]
[1735309554653,0.12411726,96417.0,96416.0,0.144318]
[1735309555570,0.12411726,96421.0,96417.0,0.051917]
[1735309556657,0.12411726,96421.0,96418.0,0.051916]
[1735309557562,0.12411726,96421.0,96416.0,0.0914]
[1735309557768,0.12411726,96421.0,96420.0,0.051916]
[1735309559153,0.12411726,96422.0,96420.0,0.051916]
[1735309559353,0.001,96421.0,96420.0,0.051916]
[1735309559761,0.001,96421.0,96420.0,0.06324217]
[1735309560565,0.001,96421.0,96420.0,0.051916]
[1735309561758,0.12411726,96430.0,96429.0,0.051911]
[1735309563173,0.12611726,96430.0,96429.0,0.051911]
[1735309563364,0.13111726,96430.0,96429.0,0.051911]
[1735309563767,0.007,96430.0,96429.0,0.051911]
[1735309564671,0.007,96430.0,96429.0,0.0618108]
[1735309567877,0.007,96430.0,96429.0,0.051911]
[1735309568078,0.307,96430.0,96424.0,0.18644509]
[1735309568368,0.051913,96425.0,96424.0,0.18644509]
[1735309568568,0.051913,96425.0,96412.0,0.31074183]
[1735309568777,0.051919,96413.0,96412.0,0.31074183]
[1735309569572,0.051919,96413.0,96405.0,0.00092]
[1735309569573,0.05049637,96413.0,96405.0,0.00092]
[1735309569777,0.051923,96406.0,96400.0,0.051926]
[1735309571379,0.12423845,96402.0,96400.0,0.051926]
[1735309572474,0.051923,96406.0,96400.0,0.051926]
[1735309572475,0.12423845,96403.0,96401.0,0.051926]
[1735309572870,0.001,96402.0,96401.0,0.051926]
[1735309573873,0.12423845,96404.0,96403.0,0.051925]
[1735309574078,0.15529806,96410.0,96401.0,0.059926]
[1735309574271,0.0101797,96427.0,96409.0,0.051922]
[1735309574472,0.10368896,96430.0,96415.0,0.051918]
[1735309574870,0.18620071,96424.0,96423.0,0.051914]
[1735309576181,0.18820071,96424.0,96423.0,0.051914]
[1735309576479,0.003,96424.0,96423.0,0.051914]
[1735309584080,0.054913,96424.0,96418.0,0.051916]
[1735309584289,0.003,96424.0,96411.0,0.0496]
[1735309584673,0.003,96424.0,96417.0,0.051917]
[1735309585194,0.10368896,96430.0,96417.0,0.051917]
[1735309585489,0.10368896,96430.0,96412.0,0.051919]
[1735309585490,0.051914,96423.0,96412.0,0.051919]
[1735309585672,0.10368896,96421.0,96415.0,0.051918]
[1735309585877,0.10368896,96421.0,96417.0,0.001]
[1735309586278,0.051914,96423.0,96417.0,0.052917]
[1735309590579,0.051914,96423.0,96418.0,0.051916]
[1735309591493,0.1397,96429.0,96417.0,0.001]
[1735309591792,0.051911,96428.0,96422.0,0.051915]
[1735309592080,0.10368896,96430.0,96422.0,0.051915]
[1735309592483,0.05049086,96428.0,96422.0,0.051915]
[1735309592883,0.051914,96424.0,96422.0,0.051915]
[1735309593578,0.05049086,96429.0,96427.0,0.051911]
[1735309593988,0.05049086,96429.0,96428.0,0.0953]
[1735309595081,0.09321821,96431.0,96429.0,0.051911]
[1735309596381,0.09621821,96431.0,96429.0,0.051911]
[1735309597179,0.09721821,96431.0,96429.0,0.051911]
[1735309597382,0.09721821,96431.0,96430.0,0.01136182]
[1735309597893,0.004,96431.0,96430.0,0.01136182]
[1735309598697,0.003,96431.0,96430.0,0.01136182]
[1735309598886,0.09321821,96435.0,96430.0,0.01136182]
[1735309599195,0.003,96431.0,96430.0,0.05191]
[1735309599496,0.003,96431.0,96430.0,0.06329309]
[1735309599793,0.09321821,96438.0,96430.0,0.01138296]
[1735309599984,0.09321821,96438.0,96437.0,0.051906]
[1735309601288,0.09321821,96439.0,96437.0,0.051906]
[1735309601688,0.002,96438.0,96437.0,0.051906]
[1735309602085,0.003,96438.0,96437.0,0.051906]
[1735309602498,0.09621821,96438.0,96437.0,0.051906]
[1735309602797,0.09521821,96438.0,96437.0,0.051906]
[1735309603187,0.09321821,96438.0,96437.0,0.051906]
[1735309603386,0.09721821,96438.0,96437.0,0.051906]
[1735309604388,0.09921821,96438.0,96437.0,0.051906]
[1735309604583,0.09921821,96438.0,96424.0,0.24862371]
[1735309604795,0.05191,96430.0,96425.0,0.24862371]
[1735309604999,0.051912,96426.0,96425.0,0.24862371]
[1735309605991,0.051912,96426.0,96425.0,0.001]
[1735309606991,0.06211881,96426.0,96425.0,0.001]
[1735309607904,0.06311881,96426.0,96425.0,0.001]
[1735309608287,0.051914,96423.0,96419.0,0.051916]
[1735309608504,0.051915,96422.0,96419.0,0.051916]
[1735309609296,0.01420681,96426.0,96412.0,0.05637851]
[1735309609297,0.01120681,96426.0,96421.0,0.051915]
[1735309609492,0.15534175,96428.0,96412.0,0.05637851]
[1735309609799,0.18620071,96433.0,96427.0,0.051912]
[1735309610301,0.18620071,96433.0,96412.0,0.05637851]
[1735309610302,0.18620071,96433.0,96428.0,0.051911]
[1735309610603,0.15533079,96433.0,96428.0,0.051911]
[1735309611196,0.15633079,96433.0,96428.0,0.051911]
[1735309611500,0.15533079,96432.0,96428.0,0.051911]
[1735309611898,0.15533079,96432.0,96429.0,0.05191]
[1735309612295,0.15533079,96432.0,96430.0,0.05191]
[1735309613102,0.15933079,96432.0,96430.0,0.05191]
[1735309613295,0.15933079,96432.0,96431.0,0.0959]
[1735309613495,0.16233079,96432.0,96431.0,0.0959]
[1735309613690,0.08713079,96432.0,96431.0,0.0959]
[1735309613898,0.18620071,96439.0,96431.0,0.0959]
[1735309614087,0.15531302,96442.0,96438.0,0.051906]
[1735309614292,0.18637562,96448.0,96439.0,0.01147706]
[1735309614500,0.18637562,96448.0,96447.0,0.051901]
[1735309614697,0.21705474,96459.0,96458.0,0.051895]
[1735309615503,0.09312572,96463.0,96462.0,0.051893]
[1735309616397,0.008,96459.0,96458.0,0.052895]
[1735309618008,0.008,96459.0,96458.0,0.06283275]
[1735309618706,0.19022572,96469.0,96458.0,0.00993775]
[1735309618905,0.008,96463.0,96462.0,0.052893]
[1735309619405,0.008,96459.0,96458.0,0.052895]
[1735309619999,0.002,96463.0,96449.0,0.10368896]
[1735309620197,0.01,96463.0,96462.0,0.052893]
[1735309620598,0.002,96463.0,96462.0,0.051893]
[1735309620801,0.002,96463.0,96458.0,0.001]
[1735309620802,0.09312572,96476.0,96469.0,0.051889]
[1735309621007,0.09312572,96476.0,96470.0,0.051888]
[1735309621211,0.09312572,96477.0,96470.0,0.051888]
[1735309621397,0.09312572,96477.0,96473.0,0.051887]
[1735309622505,0.09312572,96477.0,96453.0,0.0452]
[1735309622706,0.16275922,96480.0,96466.0,0.051891]
[1735309622707,0.10368896,96470.0,96466.0,0.051891]
[1735309622902,0.0495,96474.0,96470.0,0.051888]
[1735309623099,0.0495,96474.0,96473.0,0.009]
[1735309623303,0.001,96475.0,96474.0,0.051887]
[1735309623709,0.001,96475.0,96474.0,0.100787]
[1735309623905,0.001,96475.0,96474.0,0.051887]
[1735309625310,0.09312572,96476.0,96474.0,0.051887]
[1735309625610,0.09312572,96476.0,96474.0,0.056887]
[1735309625914,0.09312572,96491.0,96490.0,0.051878]
[1735309627006,0.09312572,96491.0,96481.0,0.051882]
[1735309627205,0.09312572,96491.0,96490.0,0.055878]
[1735309627602,0.098,96499.0,96495.0,0.051875]
[1735309627811,0.10819096,96499.0,96495.0,0.051875]
[1735309628212,0.098,96499.0,96495.0,0.051875]
[1735309629213,0.098,96499.0,96495.0,0.057875]
[1735309629913,0.0485,96499.0,96498.0,0.051874]
[1735309630105,0.1,96500.0,96498.0,0.051874]
[1735309631810,0.1,96500.0,96498.0,0.055874]
[1735309632212,0.1,96500.0,96498.0,0.058874]
[1735309635602,0.1,96500.0,96498.0,0.055874]
[1735309635918,0.108,96500.0,96498.0,0.0660565]
[1735309636607,0.11,96500.0,96498.0,0.0630565]
[1735309637211,0.01032583,96517.0,96498.0,0.0630565]
[1735309637212,0.01032583,96517.0,96498.0,0.0111825]
[1735309637406,0.15028896,96520.0,96515.0,0.051864]
[1735309637601,0.57112001,96568.0,96510.0,0.10368896]
[1735309637602,0.00995339,96525.0,96510.0,0.10368896]
[1735309637804,0.0963,96537.0,96511.0,0.0484]
[1735309638007,0.1451,96537.0,96511.0,0.0975]
[1735309638312,0.1451,96537.0,96521.0,0.051861]
[1735309638617,0.1451,96537.0,96534.0,0.051854]
[1735309639212,0.1481,96537.0,96534.0,0.051854]
[1735309639416,0.0496,96537.0,96536.0,0.051853]
[1735309640710,0.0466,96537.0,96536.0,0.051853]
[1735309640921,0.0466,96537.0,96534.0,0.005]
[1735309641917,0.051851,96540.0,96534.0,0.005]
[1735309642109,0.0467,96539.0,96536.0,0.003]
[1735309642308,0.0467,96539.0,96536.0,0.005]
[1735309642507,0.051851,96540.0,96536.0,0.005]
[1735309642725,0.051851,96540.0,96536.0,0.002]
[1735309642917,0.0467,96539.0,96536.0,0.002]
[1735309643110,0.0467,96539.0,96535.0,0.051853]
[1735309643523,0.051853,96537.0,96534.0,0.011]
[1735309643823,0.051854,96536.0,96534.0,0.011]
[1735309644408,0.0467,96539.0,96534.0,0.011]
[1735309644607,0.051853,96537.0,96534.0,0.011]
[1735309644909,0.051853,96537.0,96536.0,0.007]
[1735309645108,0.0467,96539.0,96511.0,0.0484]
[1735309645307,0.10368896,96521.0,96510.0,0.051867]
[1735309645514,0.15218896,96520.0,96503.0,0.24862371]
[1735309645713,0.05187,96505.0,96503.0,0.24862371]
[1735309646117,0.0502,96504.0,96503.0,0.24862371]
[1735309646316,0.0502,96504.0,96492.0,0.00084]
[1735309646515,0.0502,96504.0,96490.0,0.01010926]
[1735309646821,0.0502,96504.0,96502.0,0.051871]
[1735309648819,0.0532,96504.0,96502.0,0.051871]
[1735309649214,0.0552,96504.0,96502.0,0.051871]
[1735309649606,0.0552,96504.0,96481.0,0.24862371]
[1735309649809,0.051881,96486.0,96481.0,0.24862371]
[1735309650115,0.051882,96483.0,96482.0,0.09822371]
[1735309650419,0.051885,96477.0,96476.0,0.31074183]
[1735309651510,0.051885,96477.0,96469.0,0.00084]
[1735309651720,0.053885,96477.0,96468.0,0.051889]
[1735309652121,0.002,96477.0,96468.0,0.051889]
[1735309652325,0.051886,96476.0,96468.0,0.051889]
[1735309653019,0.051889,96471.0,96460.0,0.051894]
[1735309653218,0.10368896,96470.0,96445.0,0.0494]
[1735309653411,0.10368896,96470.0,96463.0,0.051892]
[1735309653725,0.10368896,96470.0,96464.0,0.051892]
[1735309653925,0.011,96477.0,96450.0,0.10368896]
[1735309654115,0.008,96477.0,96468.0,0.05289]
[1735309654321,0.006,96477.0,96469.0,0.051889]
[1735309654519,0.003,96476.0,96469.0,0.051889]
[1735309655217,0.003,96477.0,96469.0,0.051889]
[1735309655825,0.011,96477.0,96469.0,0.051889]
[1735309656023,0.051889,96470.0,96468.0,0.001]
[1735309657318,0.051889,96470.0,96432.0,0.31074183]
[1735309657319,0.003,96476.0,96432.0,0.31074183]
[1735309657517,0.10368896,96450.0,96442.0,0.051903]
[1735309657820,0.10368896,96450.0,96443.0,0.051903]
[1735309658024,0.10368896,96450.0,96439.0,0.01157501]
[1735309658221,0.10368896,96450.0,96445.0,0.051902]
[1735309658423,0.10368896,96460.0,96439.0,0.00155527]
[1735309658618,0.10368896,96460.0,96455.0,0.051896]
[1735309659635,0.15558296,96460.0,96455.0,0.051896]
[1735309660334,0.051895,96459.0,96455.0,0.051896]
[1735309660522,0.051897,96456.0,96447.0,0.051901]
[1735309661034,0.051897,96456.0,96448.0,0.0519]
[1735309661237,0.051897,96456.0,96439.0,0.01382552]
[1735309661535,0.10968896,96460.0,96453.0,0.051897]
[1735309661721,0.002,96456.0,96453.0,0.051897]
[1735309662331,0.10468896,96460.0,96453.0,0.051897]
[1735309662532,0.10368896,96460.0,96453.0,0.051897]
[1735309662931,0.10368896,96460.0,96455.0,0.051897]
[1735309663828,0.10368896,96460.0,96457.0,0.051895]
[1735309664430,0.10868896,96460.0,96457.0,0.051895]
[1735309664837,0.051895,96458.0,96449.0,0.051899]
[1735309665028,0.001,96456.0,96454.0,0.051897]
[1735309665848,0.051895,96458.0,96454.0,0.051897]
[1735309666647,0.001,96456.0,96454.0,0.051897]
[1735309667048,0.005,96456.0,96454.0,0.051897]
[1735309667447,0.001,96456.0,96454.0,0.051897]
[1735309668150,0.004,96456.0,96454.0,0.051897]
[1735309669041,0.005,96456.0,96454.0,0.051897]
[1735309670250,0.051899,96452.0,96447.0,0.051901]
[1735309670445,0.051899,96451.0,96447.0,0.051901]
[1735309670747,0.051899,96451.0,96439.0,0.01153336]
[1735309670948,0.051899,96451.0,96449.0,0.0519]
[1735309671755,0.001,96451.0,96439.0,0.01153336]
[1735309672950,0.001,96451.0,96450.0,0.051899]
[1735309673345,0.001,96451.0,96439.0,0.01353336]
[1735309673346,0.051895,96459.0,96439.0,0.01353336]
[1735309673652,0.002,96451.0,96450.0,0.051899]
[1735309674053,0.003,96451.0,96440.0,0.051905]
[1735309674253,0.003,96451.0,96450.0,0.051899]
[1735309674552,0.10368896,96460.0,96440.0,0.051905]
[1735309674749,0.10368896,96460.0,96459.0,0.051895]
[1735309674954,0.00999766,96463.0,96459.0,0.051895]
[1735309675249,0.0466,96466.0,96459.0,0.051895]
[1735309676046,0.051893,96462.0,96459.0,0.051895]
[1735309676650,0.14456611,96462.0,96459.0,0.051895]
[1735309676851,0.14456611,96462.0,96459.0,0.052895]
[1735309677051,0.09267311,96462.0,96460.0,0.051894]
[1735309677558,0.09967311,96462.0,96460.0,0.051894]
[1735309678347,0.10167311,96462.0,96460.0,0.051894]
[1735309679151,0.009,96462.0,96460.0,0.051894]
[1735309679760,0.002,96462.0,96460.0,0.051894]
[1735309679957,0.060893,96462.0,96460.0,0.052894]
[1735309680260,0.009,96462.0,96460.0,0.052894]
[1735309680467,0.009,96462.0,96461.0,0.0448]
[1735309680765,0.009,96462.0,96460.0,0.052894]
[1735309681465,0.060893,96462.0,96460.0,0.001]
[1735309681660,0.055,96462.0,96453.0,0.30867021]
[1735309681848,0.051897,96454.0,96453.0,0.30867021]
[1735309682656,0.051901,96447.0,96446.0,0.37124425]
[1735309682964,0.051906,96438.0,96435.0,0.051907]
[1735309683158,0.051906,96438.0,96436.0,0.01156067]
[1735309683358,0.051906,96438.0,96437.0,0.01156067]
[1735309683659,0.051906,96438.0,96435.0,0.051907]
[1735309683859,0.051906,96438.0,96436.0,0.01156408]
[1735309684164,0.051906,96438.0,96435.0,0.051907]
[1735309684165,0.051906,96438.0,96435.0,0.055907]
[1735309684370,0.17635454,96438.0,96436.0,0.01156496]
[1735309684553,0.12444854,96438.0,96420.0,0.37040425]
[1735309684759,0.10368896,96430.0,96421.0,0.01156221]
[1735309685067,0.051914,96424.0,96422.0,0.01156221]
[1735309685360,0.051914,96424.0,96421.0,0.051915]
[1735309686257,0.12444854,96425.0,96422.0,0.051914]
[1735309686764,0.12444854,96424.0,96422.0,0.051914]
[1735309687567,0.12444854,96426.0,96422.0,0.055914]
[1735309688265,0.12444854,96426.0,96424.0,0.051913]
[1735309689560,0.12444854,96426.0,96424.0,0.054913]
[1735309690361,0.09312739,96430.0,96427.0,0.051912]
[1735309690555,0.09312739,96430.0,96424.0,0.007]
[1735309690556,0.09312739,96430.0,96428.0,0.051911]
[1735309691365,0.09312739,96430.0,96429.0,0.0453]
[1735309691565,0.12444854,96435.0,96434.0,0.051908]
[1735309692662,0.051905,96440.0,96429.0,0.0453]
[1735309692663,0.09309449,96439.0,96435.0,0.051907]